Workbook

Sheet Rozpočet-čerpanie
B1: Čerpanie k 1.10.2020*
B2: Partner | C2: Rozpočet | D2: Poplatky | E2: ZPC | F2: Potvrdené čerpanie - SPOLU | G2: % z roz. | H2: Potvrdené čerpanie - poplatky | I2: % z roz. | J2: Potvrdené čerpanie - ZPC | K2: % z roz. | L2: Očakávané čerpanie - SPOLU | M2: Očakávané čerpanie - Poplatky | N2: % z roz. | O2: Očakávané čerpanie - ZPC | P2: % z roz. | Q2: Zostatok - Poplatky | R2: Zostatok - ZPC
A3: 1 | B3: MF SR | C3: =Rozpočet!C3 -> 593050 | D3: =Rozpočet!D3 -> 270756 | E3: =Rozpočet!E3 -> 322294 | F3: =H3+J3 -> 286184.8752 | G3: =F3/C3 -> 0.4825644975 | H3: =Rozpočet!H3 -> 171333.2052 | I3: =H3/D3 -> 0.6327955991 | J3: =Rozpočet!J3 -> 114851.67 | K3: =J3/E3 -> 0.3563568357 | L3: =Rozpočet!L3 -> 288600.3419 | M3: =Rozpočet!N3 -> 172648.6719 | N3: =Rozpočet!O3 -> 0.6376540942 | O3: =Rozpočet!P3 -> 115951.67 | P3: =Rozpočet!Q3 -> 0.3597698685 | Q3: =D3-M3 -> 98107.32807 | R3: =E3-O3 -> 206342.33
A4: 2 | B4: FR SR | C4: =Rozpočet!C4 -> 63345 | D4: =Rozpočet!D4 -> 32420 | E4: =Rozpočet!E4 -> 30925 | F4: =H4+J4 -> 21073.25681 | G4: =F4/C4 -> 0.3326743517 | H4: =Rozpočet!H4 -> 11276.55681 | I4: =H4/D4 -> 0.3478271686 | J4: =Rozpočet!J4 -> 9796.7 | K4: 0.3167890057 | L4: =Rozpočet!L4 -> 24622.25681 | M4: =Rozpočet!N4 -> 13395.55681 | N4: =Rozpočet!O4 -> 0.4131880569 | O4: =Rozpočet!P4 -> 11226.7 | P4: =Rozpočet!Q4 -> 0.3630299111 | Q4: =D4-M4 -> 19024.44319 | R4: =E4-O4 -> 19698.3
A5: 3 | B5: KP SR | C5: =Rozpočet!C5 -> 33345 | D5: =Rozpočet!D5 -> 12420 | E5: =Rozpočet!E5 -> 20925 | F5: 5261.75 | G5: 0.157797271 | H5: =Rozpočet!H5 -> 4460 | I5: 0.3590982287 | J5: =Rozpočet!J5 -> 801.75 | K5: 0.03831541219 | L5: =Rozpočet!L5 -> 5261.75 | M5: =Rozpočet!N5 -> 4460 | N5: =Rozpočet!O5 -> 0.3590982287 | O5: =Rozpočet!P5 -> 801.75 | P5: =Rozpočet!Q5 -> 0.03831541219 | Q5: 7960 | R5: 20123.25
A6: 4 | B6: KRRZ | C6: =Rozpočet!C6 -> 141114.93 | D6: =Rozpočet!D6 -> 67068 | E6: =Rozpočet!E6 -> 74046.93 | F6: 61013.198 | G6: 0.4323652926 | H6: =Rozpočet!H6 -> 32219.1175 | I6: 0.4803947859 | J6: =Rozpočet!J6 -> 28794.0805 | K6: 0.3888625835 | L6: =Rozpočet!L6 -> 61013.198 | M6: =Rozpočet!N6 -> 32219.1175 | N6: =Rozpočet!O6 -> 0.4803947859 | O6: =Rozpočet!P6 -> 28794.0805 | P6: =Rozpočet!Q6 -> 0.3888625835 | Q6: 34848.8825 | R6: 45252.8495
A7: 5 | B7: MDV SR | C7: =Rozpočet!C7 -> 74290 | D7: =Rozpočet!D7 -> 34776 | E7: =Rozpočet!E7 -> 39514 | F7: 9133.48 | G7: 0.1229435994 | H7: =Rozpočet!H7 -> 7252.69 | I7: 0.2085544628 | J7: =Rozpočet!J7 -> 1880.79 | K7: 0.04759806651 | L7: =Rozpočet!L7 -> 9133.48 | M7: =Rozpočet!N7 -> 7252.69 | N7: =Rozpočet!O7 -> 0.2085544628 | O7: =Rozpočet!P7 -> 1880.79 | P7: =Rozpočet!Q7 -> 0.04759806651 | Q7: 27523.31 | R7: 37633.21
A8: 6 | B8: MH SR | C8: =Rozpočet!C8 -> 53090 | D8: =Rozpočet!D8 -> 29744 | E8: =Rozpočet!E8 -> 23346 | F8: 6445.33 | G8: 0.1214038425 | H8: =Rozpočet!H8 -> 3654.9 | I8: 0.1228785637 | J8: =Rozpočet!J8 -> 2790.43 | K8: 0.1195249722 | L8: =Rozpočet!L8 -> 6445.33 | M8: =Rozpočet!N8 -> 3654.9 | N8: =Rozpočet!O8 -> 0.1228785637 | O8: =Rozpočet!P8 -> 2790.43 | P8: =Rozpočet!Q8 -> 0.1195249722 | Q8: 26089.1 | R8: 20555.57
A9: 7 | B9: MK SR | C9: =Rozpočet!C9 -> 33345 | D9: =Rozpočet!D9 -> 12420 | E9: =Rozpočet!E9 -> 20925 | F9: 11628.14 | G9: 0.3487221472 | H9: =Rozpočet!H9 -> 5886.2 | I9: 0.4739291465 | J9: =Rozpočet!J9 -> 5741.94 | K9: 0.2744057348 | L9: =Rozpočet!L9 -> 11628.14 | M9: =Rozpočet!N9 -> 5886.2 | N9: =Rozpočet!O9 -> 0.4739291465 | O9: =Rozpočet!P9 -> 5741.94 | P9: =Rozpočet!Q9 -> 0.2744057348 | Q9: 6533.8 | R9: 15183.06
A10: 8 | B10: MO SR | C10: =Rozpočet!C10 -> 53345 | D10: =Rozpočet!D10 -> 32420 | E10: =Rozpočet!E10 -> 20925 | F10: 17373.7 | G10: 0.3256856313 | H10: =Rozpočet!H10 -> 11072.8 | I10: 0.3415422579 | J10: =Rozpočet!J10 -> 6300.9 | K10: 0.3011182796 | L10: =Rozpočet!L10 -> 17373.7 | M10: =Rozpočet!N10 -> 11072.8 | N10: =Rozpočet!O10 -> 0.3415422579 | O10: =Rozpočet!P10 -> 6300.9 | P10: =Rozpočet!Q10 -> 0.3011182796 | Q10: 21347.2 | R10: 14624.1
A11: 9 | B11: MPRV SR | C11: =Rozpočet!C11 -> 33345 | D11: =Rozpočet!D11 -> 12420 | E11: =Rozpočet!E11 -> 20925 | F11: 7604.89 | G11: 0.2280668766 | H11: =Rozpočet!H11 -> 3125 | I11: 0.251610306 | J11: =Rozpočet!J11 -> 4479.89 | K11: 0.2140927121 | L11: =Rozpočet!L11 -> 7934.89 | M11: =Rozpočet!N11 -> 3325 | N11: =Rozpočet!O11 -> 0.2677133655 | O11: =Rozpočet!P11 -> 4609.89 | P11: =Rozpočet!Q11 -> 0.2203053763 | Q11: 9095 | R11: 16315.11
A12: 10 | B12: MPSVR SR | C12: =Rozpočet!C12 -> 97490 | D12: =Rozpočet!D12 -> 72228 | E12: =Rozpočet!E12 -> 25262 | F12: 49409.45 | G12: 0.5068155708 | H12: =Rozpočet!H12 -> 34906 | I12: 0.4832751841 | J12: =Rozpočet!J12 -> 14503.45 | K12: 0.5741212097 | L12: =Rozpočet!L12 -> 49409.45 | M12: =Rozpočet!N12 -> 34906 | N12: =Rozpočet!O12 -> 0.4832751841 | O12: =Rozpočet!P12 -> 14503.45 | P12: =Rozpočet!Q12 -> 0.5741212097 | Q12: 37322 | R12: 10758.55
A13: 11 | B13: MŠVVŠ SR | C13: =Rozpočet!C13 -> 101890 | D13: =Rozpočet!D13 -> 44712 | E13: =Rozpočet!E13 -> 57178 | F13: 28798.36455 | G13: 0.282641717 | H13: =Rozpočet!H13 -> 13881.95455 | I13: 0.3104749183 | J13: =Rozpočet!J13 -> 14916.41 | K13: 0.2608767358 | L13: =Rozpočet!L13 -> 28798.36455 | M13: =Rozpočet!N13 -> 13881.95455 | N13: =Rozpočet!O13 -> 0.3104749183 | O13: =Rozpočet!P13 -> 14916.41 | P13: =Rozpočet!Q13 -> 0.2608767358 | Q13: 30830.04545 | R13: 42261.59
A14: 12 | B14: MV SR | C14: =Rozpočet!C14 -> 247780 | D14: =Rozpočet!D14 -> 189017 | E14: =Rozpočet!E14 -> 58763 | F14: 157374.8 | G14: 0.6351392364 | H14: =Rozpočet!H14 -> 113612.22 | I14: =H14/D14 -> 0.6010687928 | J14: =Rozpočet!J14 -> 43762.58 | K14: 0.7447301874 | L14: =Rozpočet!L14 -> 157374.8 | M14: =Rozpočet!N14 -> 113612.22 | N14: =Rozpočet!O14 -> 0.6010687928 | O14: =Rozpočet!P14 -> 43762.58 | P14: =Rozpočet!Q14 -> 0.7447301874 | Q14: 75404.78 | R14: 15000.42
A15: 13 | B15: MZVEZ SR | C15: =Rozpočet!C15 -> 33345 | D15: =Rozpočet!D15 -> 12420 | E15: =Rozpočet!E15 -> 20925 | F15: 6813.5 | G15: 0.2043334833 | H15: =Rozpočet!H15 -> 5842.17 | I15: 0.470384058 | J15: =Rozpočet!J15 -> 971.33 | K15: 0.04641959379 | L15: =Rozpočet!L15 -> 6813.5 | M15: =Rozpočet!N15 -> 5842.17 | N15: =Rozpočet!O15 -> 0.470384058 | O15: =Rozpočet!P15 -> 971.33 | P15: =Rozpočet!Q15 -> 0.04641959379 | Q15: 6577.83 | R15: 19953.67
A16: 14 | B16: MZ SR | C16: =Rozpočet!C16 -> 110690 | D16: =Rozpočet!D16 -> 49680 | E16: =Rozpočet!E16 -> 61010 | F16: 33829.78 | G16: 0.3056263438 | H16: =Rozpočet!H16 -> 19943.78 | I16: 0.401444847 | J16: =Rozpočet!J16 -> 13886 | K16: 0.2276020325 | L16: =Rozpočet!L16 -> 38929.78 | M16: =Rozpočet!N16 -> 19943.78 | N16: =Rozpočet!O16 -> 0.401444847 | O16: =Rozpočet!P16 -> 18986 | P16: =Rozpočet!Q16 -> 0.3111948861 | Q16: 29736.22 | R16: 42024
A17: 15 | B17: MŽP SR | C17: =Rozpočet!C17 -> 93090 | D17: =Rozpočet!D17 -> 39744 | E17: =Rozpočet!E17 -> 53346 | F17: 48916.5 | G17: 0.5254753464 | H17: =Rozpočet!H17 -> 24531.46 | I17: 0.6172368156 | J17: =Rozpočet!J17 -> 24385.04 | K17: 0.4571109362 | L17: =Rozpočet!L17 -> 48916.5 | M17: =Rozpočet!N17 -> 24531.46 | N17: =Rozpočet!O17 -> 0.6172368156 | O17: =Rozpočet!P17 -> 24385.04 | P17: =Rozpočet!Q17 -> 0.4571109362 | Q17: 15212.54 | R17: 28960.96
A18: 16 | B18: NKÚ SR | C18: =Rozpočet!C18 -> 64145 | D18: =Rozpočet!D18 -> 29808 | E18: =Rozpočet!E18 -> 34337 | F18: 26469.71 | G18: 0.4126542989 | H18: =Rozpočet!H18 -> 16969.7 | I18: 0.5693001879 | J18: =Rozpočet!J18 -> 9500.01 | K18: 0.2766697731 | L18: =Rozpočet!L18 -> 26469.71 | M18: =Rozpočet!N18 -> 16969.7 | N18: =Rozpočet!O18 -> 0.5693001879 | O18: =Rozpočet!P18 -> 9500.01 | P18: =Rozpočet!Q18 -> 0.2766697731 | Q18: 12838.3 | R18: 24836.99
A19: 17 | B19: PMÚ SR | C19: =Rozpočet!C19 -> 42145 | D19: =Rozpočet!D19 -> 17388 | E19: =Rozpočet!E19 -> 24757 | F19: 7633.38 | G19: 0.1811218413 | H19: =Rozpočet!H19 -> 4108.2 | I19: 0.2362663906 | J19: =Rozpočet!J19 -> 3525.18 | K19: 0.1423912429 | L19: =Rozpočet!L19 -> 10261.38 | M19: =Rozpočet!N19 -> 5792.2 | N19: =Rozpočet!O19 -> 0.3331147918 | O19: =Rozpočet!P19 -> 4469.18 | P19: =Rozpočet!Q19 -> 0.1805218726 | Q19: 11595.8 | R19: 20287.82
A20: 18 | B20: MIRRI SR | C20: =Rozpočet!C20 -> 42145 | D20: =Rozpočet!D20 -> 28388 | E20: =Rozpočet!E20 -> 13757 | F20: 19100.11658 | G20: 0.4532000613 | H20: =Rozpočet!H20 -> 13009.48658 | I20: 0.4582741505 | J20: =Rozpočet!J20 -> 6090.63 | K20: 0.4427295195 | L20: =Rozpočet!L20 -> 38496.11658 | M20: =Rozpočet!N20 -> 26154.48658 | N20: =Rozpočet!O20 -> 0.9213219171 | O20: =Rozpočet!P20 -> 12341.63 | P20: =Rozpočet!Q20 -> 0.8971163771 | Q20: 2233.513416 | R20: 1415.37
A21: 19 | B21: ÚVO | C21: =Rozpočet!C21 -> 23345 | D21: =Rozpočet!D21 -> 12420 | E21: =Rozpočet!E21 -> 10925 | F21: 0 | G21: 0 | H21: =Rozpočet!H21 -> 0 | I21: 0 | J21: =Rozpočet!J21 -> 0 | K21: 0 | L21: =Rozpočet!L21 -> 798 | M21: =Rozpočet!N21 -> 408 | N21: =Rozpočet!O21 -> 0.03285024155 | O21: =Rozpočet!P21 -> 390 | P21: =Rozpočet!Q21 -> 0.0356979405 | Q21: 12012 | R21: 10535
A22: 20 | B22: ÚV SR | C22: =Rozpočet!C22 -> 79745 | D22: =Rozpočet!D22 -> 47324 | E22: =Rozpočet!E22 -> 32421 | F22: 37840.15 | G22: 0.4745143896 | H22: =Rozpočet!H22 -> 24683.78 | I22: 0.5215911588 | J22: =Rozpočet!J22 -> 13156.37 | K22: 0.4057977854 | L22: =Rozpočet!L22 -> 42978.15 | M22: =Rozpočet!N22 -> 27171.78 | N22: =Rozpočet!O22 -> 0.5741649058 | O22: =Rozpočet!P22 -> 15806.37 | P22: =Rozpočet!Q22 -> 0.4875349311 | Q22: 20152.22 | R22: 16614.63
A23: 21 | B23: ÚPSVR | C23: =Rozpočet!C23 -> 23345 | D23: =Rozpočet!D23 -> 12420 | E23: =Rozpočet!E23 -> 10925 | F23: 0 | G23: 0 | H23: =Rozpočet!H23 -> 0 | I23: 0 | J23: =Rozpočet!J23 -> 0 | K23: 0 | L23: =Rozpočet!L23 -> 0 | M23: =Rozpočet!N23 -> 0 | N23: =Rozpočet!O23 -> 0 | O23: =Rozpočet!P23 -> 0 | P23: =Rozpočet!Q23 -> 0 | Q23: 12420 | R23: 10925
B24: SPOLU | C24: =Rozpočet!C24 -> 2037424.93 | D24: =Rozpočet!D24 -> 1059993 | E24: =Rozpočet!E24 -> 977431.93 | F24: =SUM(F3:F23) -> 841904.3712 | G24: 0.4132198241 | H24: =Rozpočet!H24 -> 521769.2207 | I24: 0.4922383645 | J24: =Rozpočet!J24 -> 320135.1505 | K24: 0.3275267982 | L24: =Rozpočet!L24 -> 881258.8379 | M24: =Rozpočet!N24 -> 543128.6874 | N24: =Rozpočet!O24 -> 0.5123889378 | O24: =Rozpočet!P24 -> 338130.1505 | P24: =Rozpočet!Q24 -> 0.3459372874 | Q24: 516864.3126 | R24: 639301.7795
B28: *Partner projektu môže pri prihlasovaní sa na vzdelávania rozpočet prekročiť.
B29: Partner si musí rozpočet sledovať pri samotnej realizácií vzdelávaní (vzdelávanie iného analytika môže byť zrušené).

Sheet Rozpočet
C1: Rozpočet | F1: 2016-01-01 | G1: - | H1: 2020-12-31
B2: Partner | C2: Rozpočet | D2: Poplatky | E2: ZPC | F2: Potvrdené čerpanie - SPOLU | G2: % z roz. | H2: Potvrdené čerpanie - poplatky | I2: % z roz. | J2: Potvrdené čerpanie - ZPC | K2: % z roz. | L2: Celkové očakávané čerpanie - SPOLU | M2: % z roz. | N2: Celkové očakávané čerpanie - poplatky | O2: % z roz. | P2: Celkové očakávané čerpanie - ZPC | Q2: % z roz. | R2: Školenia refundované - SPOLU | S2: % z čerp. | T2: Refundované - poplatky | U2: % z čerp. | V2: Refundované - ZPC | W2: % z čerp. | X2: Na refundáciu - poplatky | Y2: Na refundáciu - ZPC | Z2: Nepotvrdené a plánované účasti - poplatky | AA2: Nepotvrdené a plánované účasti - ZPC | AB2: Spolu potvrdené | AC2: Čakajúce na refundáciu | AD2: Komplet refundované | AE2: Čiastočne refundované | AF2: Podané komplet na refundáciu | AG2: Podané čiastočne na refundáciu | AH2: Nepotvrdené | AI2: Plánované
A3: 1 | B3: MF SR | C3: 593050 | D3: 270756 | E3: 322294 | F3: 286184.8752 | G3: 0.4825644975 | H3: 171333.2052 | I3: 0.6327955991 | J3: 114851.67 | K3: 0.3563568357 | L3: 288600.3419 | M3: 0.4866374537 | N3: 172648.6719 | O3: 0.6376540942 | P3: 115951.67 | Q3: 0.3597698685 | R3: 215647.27 | S3: 0.7535243427 | T3: 123615.08 | U3: 0.7214893332 | V3: 92032.19 | W3: 0.8013134681 | X3: 47718.12523 | Y3: 22819.48 | Z3: 1315.466698 | AA3: 1100 | AB3: 130 | AC3: 17 | AD3: 77 | AE3: 36 | AF3: 0 | AG3: 0 | AH3: 0 | AI3: 3
A4: 2 | B4: FR SR | C4: 63345 | D4: 32420 | E4: 30925 | F4: 21073.25681 | G4: 0.3326743517 | H4: 11276.55681 | I4: 0.3478271686 | J4: 9796.7 | K4: 0.3167890057 | L4: 24622.25681 | M4: 0.3887008731 | N4: 13395.55681 | O4: 0.4131880569 | P4: 11226.7 | Q4: 0.3630299111 | R4: 8570.61 | S4: 0.4067055263 | T4: 4622.91 | U4: 0.4099575854 | V4: 3947.7 | W4: 0.402962222 | X4: 6653.646806 | Y4: 5849 | Z4: 2119 | AA4: 1430 | AB4: 17 | AC4: 8 | AD4: 9 | AE4: 0 | AF4: 0 | AG4: 0 | AH4: 1 | AI4: 5
A5: 3 | B5: KP SR | C5: 33345 | D5: 12420 | E5: 20925 | F5: 5261.75 | G5: 0.157797271 | H5: 4460 | I5: 0.3590982287 | J5: 801.75 | K5: 0.03831541219 | L5: 5261.75 | M5: 0.157797271 | N5: 4460 | O5: 0.3590982287 | P5: 801.75 | Q5: 0.03831541219 | R5: 5261.75 | S5: 1 | T5: 4460 | U5: 1 | V5: 801.75 | W5: 1 | X5: 0 | Y5: 0 | Z5: 0 | AA5: 0 | AB5: 2 | AC5: 0 | AD5: 2 | AE5: 0 | AF5: 0 | AG5: 0 | AH5: 0 | AI5: 0
A6: 4 | B6: KRRZ | C6: 141114.93 | D6: 67068 | E6: 74046.93 | F6: 61013.198 | G6: 0.4323652926 | H6: 32219.1175 | I6: 0.4803947859 | J6: 28794.0805 | K6: 0.3888625835 | L6: 61013.198 | M6: 0.4323652926 | N6: 32219.1175 | O6: 0.4803947859 | P6: 28794.0805 | Q6: 0.3888625835 | R6: 57843.198 | S6: 0.9480440281 | T6: 29969.1175 | U6: 0.930165685 | V6: 27874.0805 | W6: 0.9680489884 | X6: 2250 | Y6: 920 | Z6: 0 | AA6: 0 | AB6: 28 | AC6: 2 | AD6: 26 | AE6: 0 | AF6: 0 | AG6: 0 | AH6: 0 | AI6: 0
A7: 5 | B7: MDV SR | C7: 74290 | D7: 34776 | E7: 39514 | F7: 9133.48 | G7: 0.1229435994 | H7: 7252.69 | I7: 0.2085544628 | J7: 1880.79 | K7: 0.04759806651 | L7: 9133.48 | M7: 0.1229435994 | N7: 7252.69 | O7: 0.2085544628 | P7: 1880.79 | Q7: 0.04759806651 | R7: 4713.48 | S7: 0.5160661654 | T7: 3362.69 | U7: 0.4636472812 | V7: 1350.79 | W7: 0.7182035209 | X7: 3890 | Y7: 530 | Z7: 0 | AA7: 0 | AB7: 7 | AC7: 2 | AD7: 5 | AE7: 0 | AF7: 0 | AG7: 0 | AH7: 0 | AI7: 0
A8: 6 | B8: MH SR | C8: 53090 | D8: 29744 | E8: 23346 | F8: 6445.33 | G8: 0.1214038425 | H8: 3654.9 | I8: 0.1228785637 | J8: 2790.43 | K8: 0.1195249722 | L8: 6445.33 | M8: 0.1214038425 | N8: 3654.9 | O8: 0.1228785637 | P8: 2790.43 | Q8: 0.1195249722 | R8: 6445.33 | S8: 1 | T8: 3654.9 | U8: 1 | V8: 2790.43 | W8: 1 | X8: 0 | Y8: 0 | Z8: 0 | AA8: 0 | AB8: 11 | AC8: 0 | AD8: 11 | AE8: 0 | AF8: 0 | AG8: 0 | AH8: 0 | AI8: 0
A9: 7 | B9: MK SR | C9: 33345 | D9: 12420 | E9: 20925 | F9: 11628.14 | G9: 0.3487221472 | H9: 5886.2 | I9: 0.4739291465 | J9: 5741.94 | K9: 0.2744057348 | L9: 11628.14 | M9: 0.3487221472 | N9: 5886.2 | O9: 0.4739291465 | P9: 5741.94 | Q9: 0.2744057348 | R9: 6680.14 | S9: 0.5744805274 | T9: 4161.2 | U9: 0.7069416602 | V9: 2518.94 | W9: 0.4386914527 | X9: 1725 | Y9: 3223 | Z9: 0 | AA9: 0 | AB9: 6 | AC9: 3 | AD9: 3 | AE9: 0 | AF9: 0 | AG9: 0 | AH9: 0 | AI9: 0
A10: 8 | B10: MO SR | C10: 53345 | D10: 32420 | E10: 20925 | F10: 17373.7 | G10: 0.3256856313 | H10: 11072.8 | I10: 0.3415422579 | J10: 6300.9 | K10: 0.3011182796 | L10: 17373.7 | M10: 0.3256856313 | N10: 11072.8 | O10: 0.3415422579 | P10: 6300.9 | Q10: 0.3011182796 | R10: 7509.7 | S10: 0.4322452903 | T10: 7280.8 | U10: 0.6575391951 | V10: 228.9 | W10: 0.0363281436 | X10: 3792 | Y10: 6072 | Z10: 0 | AA10: 0 | AB10: 13 | AC10: 10 | AD10: 1 | AE10: 2 | AF10: 0 | AG10: 0 | AH10: 0 | AI10: 0
A11: 9 | B11: MPRV SR | C11: 33345 | D11: 12420 | E11: 20925 | F11: 7604.89 | G11: 0.2280668766 | H11: 3125 | I11: 0.251610306 | J11: 4479.89 | K11: 0.2140927121 | L11: 7934.89 | M11: 0.2379634128 | N11: 3325 | O11: 0.2677133655 | P11: 4609.89 | Q11: 0.2203053763 | R11: 5353.46 | S11: 0.7039496955 | T11: 3125 | U11: 1 | V11: 2228.46 | W11: 0.497436321 | X11: 0 | Y11: 2251.43 | Z11: 200 | AA11: 130 | AB11: 4 | AC11: 0 | AD11: 0 | AE11: 4 | AF11: 0 | AG11: 0 | AH11: 0 | AI11: 1
A12: 10 | B12: MPSVR SR | C12: 97490 | D12: 72228 | E12: 25262 | F12: 49409.45 | G12: 0.5068155708 | H12: 34906 | I12: 0.4832751841 | J12: 14503.45 | K12: 0.5741212097 | L12: 49409.45 | M12: 0.5068155708 | N12: 34906 | O12: 0.4832751841 | P12: 14503.45 | Q12: 0.5741212097 | R12: 8995.45 | S12: 0.1820593024 | T12: 6840 | U12: 0.1959548502 | V12: 2155.45 | W12: 0.1486163637 | X12: 28066 | Y12: 12348 | Z12: 0 | AA12: 0 | AB12: 17 | AC12: 14 | AD12: 3 | AE12: 0 | AF12: 0 | AG12: 0 | AH12: 0 | AI12: 0
A13: 11 | B13: MŠVVŠ SR | C13: 101890 | D13: 44712 | E13: 57178 | F13: 28798.36455 | G13: 0.282641717 | H13: 13881.95455 | I13: 0.3104749183 | J13: 14916.41 | K13: 0.2608767358 | L13: 28798.36455 | M13: 0.282641717 | N13: 13881.95455 | O13: 0.3104749183 | P13: 14916.41 | Q13: 0.2608767358 | R13: 13989.22 | S13: 0.4857643905 | T13: 8188.27 | U13: 0.5898499359 | V13: 5800.95 | W13: 0.3888971944 | X13: 5693.684547 | Y13: 9115.46 | Z13: 0 | AA13: 0 | AB13: 13 | AC13: 8 | AD13: 2 | AE13: 3 | AF13: 0 | AG13: 0 | AH13: 0 | AI13: 0
A14: 12 | B14: MV SR | C14: 247780 | D14: 189017 | E14: 58763 | F14: 157374.8 | G14: 0.6351392364 | H14: 113612.22 | I14: 0.6010687928 | J14: 43762.58 | K14: 0.7447301874 | L14: 157374.8 | M14: 0.6351392364 | N14: 113612.22 | O14: 0.6010687928 | P14: 43762.58 | Q14: 0.7447301874 | R14: 101958.6 | S14: 0.6478711967 | T14: 75389.22 | U14: 0.6635661199 | V14: 26569.38 | W14: 0.6071255397 | X14: 38223 | Y14: 17193.2 | Z14: 0 | AA14: 0 | AB14: 81 | AC14: 20 | AD14: 14 | AE14: 47 | AF14: 0 | AG14: 0 | AH14: 0 | AI14: 0
A15: 13 | B15: MZVEZ SR | C15: 33345 | D15: 12420 | E15: 20925 | F15: 6813.5 | G15: 0.2043334833 | H15: 5842.17 | I15: 0.470384058 | J15: 971.33 | K15: 0.04641959379 | L15: 6813.5 | M15: 0.2043334833 | N15: 5842.17 | O15: 0.470384058 | P15: 971.33 | Q15: 0.04641959379 | R15: 6813.5 | S15: 1 | T15: 5842.17 | U15: 1 | V15: 971.33 | W15: 1 | X15: 0 | Y15: 0 | Z15: 0 | AA15: 0 | AB15: 1 | AC15: 0 | AD15: 0 | AE15: 1 | AF15: 0 | AG15: 0 | AH15: 0 | AI15: 0
A16: 14 | B16: MZ SR | C16: 110690 | D16: 49680 | E16: 61010 | F16: 33829.78 | G16: 0.3056263438 | H16: 19943.78 | I16: 0.401444847 | J16: 13886 | K16: 0.2276020325 | L16: 38929.78 | M16: 0.3517009667 | N16: 19943.78 | O16: 0.401444847 | P16: 18986 | Q16: 0.3111948861 | R16: 0 | S16: 0 | T16: 0 | U16: 0 | V16: 0 | W16: 0 | X16: 19943.78 | Y16: 13886 | Z16: 0 | AA16: 5100 | AB16: 16 | AC16: 16 | AD16: 0 | AE16: 0 | AF16: 0 | AG16: 0 | AH16: 0 | AI16: 1
A17: 15 | B17: MŽP SR | C17: 93090 | D17: 39744 | E17: 53346 | F17: 48916.5 | G17: 0.5254753464 | H17: 24531.46 | I17: 0.6172368156 | J17: 24385.04 | K17: 0.4571109362 | L17: 48916.5 | M17: 0.5254753464 | N17: 24531.46 | O17: 0.6172368156 | P17: 24385.04 | Q17: 0.4571109362 | R17: 32911.96 | S17: 0.6728191919 | T17: 18334.46 | U17: 0.747385602 | V17: 14577.5 | W17: 0.5978050477 | X17: 6197 | Y17: 9807.54 | Z17: 0 | AA17: 0 | AB17: 20 | AC17: 6 | AD17: 9 | AE17: 5 | AF17: 0 | AG17: 0 | AH17: 0 | AI17: 0
A18: 16 | B18: NKÚ SR | C18: 64145 | D18: 29808 | E18: 34337 | F18: 26469.71 | G18: 0.4126542989 | H18: 16969.7 | I18: 0.5693001879 | J18: 9500.01 | K18: 0.2766697731 | L18: 26469.71 | M18: 0.4126542989 | N18: 16969.7 | O18: 0.5693001879 | P18: 9500.01 | Q18: 0.2766697731 | R18: 10487.71 | S18: 0.3962155233 | T18: 5299.7 | U18: 0.3123036942 | V18: 5188.01 | W18: 0.5461057409 | X18: 11670 | Y18: 4312 | Z18: 0 | AA18: 0 | AB18: 14 | AC18: 10 | AD18: 4 | AE18: 0 | AF18: 0 | AG18: 0 | AH18: 0 | AI18: 0
A19: 17 | B19: PMÚ SR | C19: 42145 | D19: 17388 | E19: 24757 | F19: 7633.38 | G19: 0.1811218413 | H19: 4108.2 | I19: 0.2362663906 | J19: 3525.18 | K19: 0.1423912429 | L19: 10261.38 | M19: 0.2434779926 | N19: 5792.2 | O19: 0.3331147918 | P19: 4469.18 | Q19: 0.1805218726 | R19: 5043.78 | S19: 0.6607531657 | T19: 2462.6 | U19: 0.5994352758 | V19: 2581.18 | W19: 0.7322122558 | X19: 1645.6 | Y19: 944 | Z19: 1684 | AA19: 944 | AB19: 7 | AC19: 4 | AD19: 3 | AE19: 0 | AF19: 0 | AG19: 0 | AH19: 0 | AI19: 8
A20: 18 | B20: ÚPV SR II | C20: 42145 | D20: 28388 | E20: 13757 | F20: 19100.11658 | G20: 0.4532000613 | H20: 13009.48658 | I20: 0.4582741505 | J20: 6090.63 | K20: 0.4427295195 | L20: 38496.11658 | M20: 0.9134207281 | N20: 26154.48658 | O20: 0.9213219171 | P20: 12341.63 | Q20: 0.8971163771 | R20: 11575.77 | S20: 0.6060575572 | T20: 8005.14 | U20: 0.6153309701 | V20: 3570.63 | W20: 0.5862496983 | X20: 5004.346584 | Y20: 2520 | Z20: 13145 | AA20: 6251 | AB20: 18 | AC20: 9 | AD20: 9 | AE20: 0 | AF20: 0 | AG20: 0 | AH20: 3 | AI20: 19
A21: 19 | B21: ÚVO | C21: 23345 | D21: 12420 | E21: 10925 | F21: 0 | G21: 0 | H21: 0 | I21: 0 | J21: 0 | K21: 0 | L21: 798 | M21: 0.03418290855 | N21: 408 | O21: 0.03285024155 | P21: 390 | Q21: 0.0356979405 | R21: 0 | S21: 0 | T21: 0 | U21: 0 | V21: 0 | W21: 0 | X21: 0 | Y21: 0 | Z21: 408 | AA21: 390 | AB21: 0 | AC21: 0 | AD21: 0 | AE21: 0 | AF21: 0 | AG21: 0 | AH21: 0 | AI21: 1
A22: 20 | B22: ÚV SR | C22: 79745 | D22: 47324 | E22: 32421 | F22: 37840.15 | G22: 0.4745143896 | H22: 24683.78 | I22: 0.5215911588 | J22: 13156.37 | K22: 0.4057977854 | L22: 42978.15 | M22: 0.5389447614 | N22: 27171.78 | O22: 0.5741649058 | P22: 15806.37 | Q22: 0.4875349311 | R22: 4272.35 | S22: 0.1129052078 | T22: 3600 | U22: 0.1458447612 | V22: 672.35 | W22: 0.05110452199 | X22: 21083.78 | Y22: 12484.02 | Z22: 2488 | AA22: 2650 | AB22: 20 | AC22: 17 | AD22: 0 | AE22: 3 | AF22: 0 | AG22: 0 | AH22: 0 | AI22: 11
A23: 21 | B23: ÚPSVR | C23: 23345 | D23: 12420 | E23: 10925 | F23: 0 | G23: 0 | H23: 0 | I23: 0 | J23: 0 | K23: 0 | L23: 0 | M23: 0 | N23: 0 | O23: 0 | P23: 0 | Q23: 0 | R23: 0 | S23: 0 | T23: 0 | U23: 0 | V23: 0 | W23: 0 | X23: 0 | Y23: 0 | Z23: 0 | AA23: 0 | AB23: 0 | AC23: 0 | AD23: 0 | AE23: 0 | AF23: 0 | AG23: 0 | AH23: 0 | AI23: 0
B24: SPOLU | C24: 2037424.93 | D24: 1059993 | E24: 977431.93 | F24: 841904.3712 | G24: 0.4132198241 | H24: 521769.2207 | I24: 0.4922383645 | J24: 320135.1505 | K24: 0.3275267982 | L24: 881258.8379 | M24: 0.4325356114 | N24: 543128.6874 | O24: 0.5123889378 | P24: 338130.1505 | Q24: 0.3459372874 | R24: 514073.278 | S24: 0.6106076837 | T24: 318213.2575 | U24: 0.6098735703 | V24: 195860.0205 | W24: 0.6118041714 | X24: 203555.9632 | Y24: 124275.13 | Z24: 21359.4667 | AA24: 17995 | AB24: 425 | AC24: 146 | AD24: 178 | AE24: 101 | AF24: 0 | AG24: 0 | AH24: 4 | AI24: 49
